Cogmind - Beta 11.1 @@@ ROGUE MODE // 2022.06.25 @ 10:39:55 Player: Demise Result: Self-destructed Performance ------------- Evolutions (3) 1500 Regions Visited (6) 1200 Robots Destroyed (31) 155 Value Destroyed (662) 662 Prototype IDs (26) 520 Alien Tech Used (0) 0 Bonus (328) 328 TOTAL SCORE: 4365 Bonus ------- Follower Combat Kills 28 Aligned with FarCom 300 Cogmind --------- Core Integrity 551/700 Matter 84/300 Energy 226/290 System Corruption 0% Temperature Cool (0) Movement Core (100) Ox1 Location -7/Factory Parts ------- > --- POWER (2) -------- Improved Deuterium Engine > --- PROPULSION (2) --- (None) > --- UTILITY (7) ------ Small Storage Unit Advanced Weight Redist. System Structural Scanner Machine Analyzer Improved Melee Analysis Suite System Shield > --- WEAPON (2) ------- Greatsword > --- INVENTORY (8) ---- Deuterium Engine Seismic Detector Modified TNC Advanced ECM Suite Cloak of Protection Improved Assault Rifle Minigun Improved Grenade Launcher Peak State ------------ > --- POWER ------------ Improved Deuterium Engine > --- PROPULSION ------- (None) > --- UTILITY ---------- Small Storage Unit Advanced Weight Redist. System Structural Scanner Machine Analyzer Improved Melee Analysis Suite System Shield > --- WEAPON ----------- Greatsword > --- INVENTORY -------- Deuterium Engine Seismic Detector Modified TNC Advanced ECM Suite Cloak of Protection Improved Assault Rifle Minigun Improved Grenade Launcher [Rating: 30] Favorites ----------- Power Nuclear Core Engine Improved Deuterium Engine Power Core Nuclear Core Propulsion None Utility Machine Analyzer Device Structural Scanner Storage Small Storage Unit Processor Machine Analyzer Hackware System Shield Protection Hardened Light Armor Plating Weapon Light Assault Rifle Energy Gun Heavy Particle Gun Ballistic Gun Light Assault Rifle Ballistic Cannon Assault Cannon Launcher Grenade Launcher Slashing Weapon Great Axe Build | -11 -10 -10 -10 -9 -8 -7 ------- Run | Scr Mat Min Exi Min Mat Fac Slots Evolved 6 | . . . . . 4 2 Power 1 | . . . . . 1 . Propulsion . | . . . . . . . Utility 5 | . . . . . 3 2 Weapon . | . . . . . . . Parts Attached 55 | 2 2 11 2 2 28 8 Power 5 | . . . . . 3 2 Engine 1 | . . . . . . 1 Core 4 | . . . . . 3 1 Reactor . | . . . . . . . Propulsion . | . . . . . . . Treads . | . . . . . . . Leg . | . . . . . . . Wheel . | . . . . . . . Hover . | . . . . . . . Flight . | . . . . . . . Utility 22 | . . 4 1 . 14 3 Device 12 | . . 3 1 . 8 . Storage 2 | . . . . . 1 1 Processor 6 | . . 1 . . 4 1 Hackware 1 | . . . . . . 1 Protection 1 | . . . . . 1 . Artifact . | . . . . . . . Weapon 28 | 2 2 7 1 2 11 3 Energy Gun 1 | . . . . . 1 . Energy Cannon . | . . . . . . . Ballistic Gun 16 | 2 2 4 1 1 4 2 Ballistic Cannon 3 | . . . . . 3 . Launcher 4 | . . 3 . 1 . . Special Weapon . | . . . . . . . Impact Weapon . | . . . . . . . Slashing Weapon 4 | . . . . . 3 1 Piercing Weapon . | . . . . . . . Special Melee Weapon . | . . . . . . . Unidentified Prototypes 3 | . . . . . 2 1 Parts Lost 8 | . . 1 . . 5 2 Power 3 | . . . . . 1 2 Propulsion . | . . . . . . . Utility 3 | . . . . . 3 . Weapon 2 | . . 1 . . 1 . Highest Loss Streak 4 | . . 1 . . 4 1 To Critical Strikes . | . . . . . . . Average Slot Usage (%) 56 | . 28 51 56 43 63 47 Core 3 | . . . . . 6 5 Device 16 | . . 13 24 15 17 15 Storage 3 | . . . . . 5 6 Processor 12 | . . 9 3 . 18 11 Ballistic Gun 14 | . 28 26 28 17 9 1 Ballistic Cannon 2 | . . . . . 4 . Launcher 1 | . . . . 10 . . Slashing Weapon 1 | . . . . . 1 1 Naked Turns . | . . . . . . . Heaviest Build 21 | 2 2 4 4 5 18 21 Greatest Support 12 | 3 3 3 3 3 12 12 Greatest Overweight (x) 2 | . . 1 1 1 2 1 Average Overweight (x) . | . . . . . . . Largest Inventory Capacity 8 | 5 5 5 5 5 8 8 Average Capacity 6 | 5 5 5 5 5 6 7 Most Carried 8 | . 1 5 5 5 8 8 Average Carried 5 | . . 2 4 4 5 6 Final Capacity 8 | 5 5 5 5 5 8 8 Final Carried 8 | . 1 4 5 4 5 8 Class Distribution -------------------- 71% | Mutant 12% | Scavenger-Scout 9% | Assassin 3% | Skirmisher Dominant Class ---------------- Mutant | -10/Materials Mutant | -10/Mines Mutant | -10/Exiles Mutant | -9/Mines Mutant | -8/Materials Mutant | -7/Factory Resources | -11 -10 -10 -10 -9 -8 -7 ----------- Run | Scr Mat Min Exi Min Mat Fac Matter Collected 978 | 222 . 301 64 46 273 72 Remotely . | . . . . . . . Salvage Created 857 | 21 . 310 . 14 440 72 Parts 54 | 1 . 31 . 2 16 4 Haulers Intercepted 1 | . . . . . 1 . Recyclers Shooed 1 | . . 1 . . . . Parts Field Recycled . | . . . . . . . Retrieved Matter . | . . . . . . . Parts Self-Destructed . | . . . . . . . Prevented . | . . . . . . . Kills | -11 -10 -10 -10 -9 -8 -7 ------- Run | Scr Mat Min Exi Min Mat Fac Combat Hostiles Destroyed 21 | . . 11 . 2 7 1 Melee 7 | . . . . . 6 1 Guns 4 | . . 3 . . 1 . AOE 10 | . . 8 . 2 . . Classes Destroyed 9 | 1 . 5 . . 3 . Worker 2 | . . 2 . . . . Builder 2 | . . 2 . . . . Tunneler 3 | 1 . 2 . . . . Hauler 1 | . . . . . 1 . Recycler 1 | . . 1 . . . . Mechanic 1 | . . . . . 1 . Swarmer 11 | . . 9 . 2 . . Grunt 8 | . . 2 . . 6 . Sentry 2 | . . . . . 1 1 Best Kill Streak 7 | 1 . 7 . 2 6 1 Combat Bots Only 6 | . . 3 . 2 6 1 Max Kills in Single Turn 2 | 1 . 2 . 2 1 1 Gunslinging . | . . . . . . . Exploded 2 | . . 2 . 2 . . Melee 1 | . . . . . 1 1 Uniques/NPCs Destroyed . | . . . . . . . Combat | -11 -10 -10 -10 -9 -8 -7 -------- Run | Scr Mat Min Exi Min Mat Fac Damage Taken 1494 | . 33 325 . 22 778 336 Core 712 | . 33 181 . 22 327 149 Absorbed by Shields . | . . . . . . . Regen/Repaired (Parts) 124 | . . . . . . 124 Core Remaining (%) 48 | 100 . . . 5 40 . Volleys Fired 135 | 2 10 59 . 5 59 . Largest 2 | 2 2 2 . 2 2 . Hottest 64 | 40 40 50 . 40 64 . Shots Fired 218 | 4 20 108 . 8 78 . Gun 175 | 4 20 98 . 6 47 . Cannon 31 | . . . . . 31 . Launcher 12 | . . 10 . 2 . . Special . | . . . . . . . Kinetic 206 | 4 20 98 . 6 78 . Thermal . | . . . . . . . Explosive 12 | . . 10 . 2 . . Electromagnetic . | . . . . . . . Robot Hit Streak 11 | 2 4 8 . 2 11 . Robot Miss Streak 5 | 1 2 4 . 3 5 . Penetration Max . | . . . . . . . Secondary Targets . | . . . . . . . Shots Hit Robots 137 | 2 12 67 . 3 49 4 Core Hits 56 | 1 2 30 . 4 18 1 Critical Kills 1 | . . 1 . . . . Critical Parts Destroyed . | . . . . . . . Critical Strikes 3 | . . 1 . . 2 . Destroy 1 | . . 1 . . . . Sever 2 | . . . . . 2 . Melee Attacks 36 | . . . . . 31 5 Impact . | . . . . . . . Slashing 36 | . . . . . 31 5 Piercing . | . . . . . . . Sneak Attacks 3 | . . . . . 3 . Combat Hostiles . | . . . . . . . Follow-up Attacks . | . . . . . . . Damage Inflicted 2764 | 18 96 1030 . 101 1311 208 Guns 832 | 18 96 506 . 17 195 . Cannons 70 | . . . . . 70 . Explosions 608 | . . 524 . 84 . . Melee 1239 | . . . . . 1031 208 Ramming 15 | . . . . . 15 . Kinetic 902 | 18 96 506 . 17 265 . Thermal . | . . . . . . . Explosive 608 | . . 524 . 84 . . Electromagnetic . | . . . . . . . Impact . | . . . . . . . Slashing 1239 | . . . . . 1031 208 Piercing . | . . . . . . . Highest Corruption 13 | . . . . . 13 . Average Corruption 10 | . . . . . 10 . Corruption Purged . | . . . . . . . Corruption Blocked . | . . . . . . . Effects 13 | . . . . . 13 . Message Errors 1 | . . . . . 1 . Matter Fused 5 | . . . . . 5 . Energy Discharges 2 | . . . . . 2 . Data Loss (minor) 3 | . . . . . 3 . Data Loss (major) 2 | . . . . . 2 . Overload Shots . | . . . . . . . Overflow Damage 45 | . . 28 . . 17 . Projectiles . | . . . . . . . Explosions 28 | . . 28 . . . . Melee 17 | . . . . . 17 . Knockbacks . | . . . . . . . Impact . | . . . . . . . Kinetic . | . . . . . . . Secondary . | . . . . . . . Self-Inflicted Damage 7 | . . . . . 7 . Shots . | . . . . . . . Rammed 3 | . . . . . 2 1 Targets Rammed 3 | . . . . . 2 1 Kicked . | . . . . . . . Crushed . | . . . . . . . Highest Temperature 81 | . . 22 . . 81 . Average Temperature 22 | . . 4 . . 31 . Received Heat Transfer 537 | . 18 141 . . 324 54 Siege Activations . | . . . . . . . Robots Corrupted . | . . . . . . . Combat Hostiles . | . . . . . . . Parts Fried . | . . . . . . . Impact Corruptions . | . . . . . . . Robots Melted . | . . . . . . . Combat Hostiles . | . . . . . . . Parts Melted . | . . . . . . . Heat Transferred . | . . . . . . . Parts Sabotaged . | . . . . . . . Parts Stolen . | . . . . . . . Parts Stripped . | . . . . . . . Power Chain Reactions . | . . . . . . . Missiles Intercepted . | . . . . . . . Alert | -11 -10 -10 -10 -9 -8 -7 ------- Run | Scr Mat Min Exi Min Mat Fac Peak Influence 388 | 5 24 388 . 200 204 234 Initial 88 | . 3 9 . . 78 88 Average 117 | 1 17 242 . 177 74 132 Maximum Alert Level 2 | . . 2 . 1 1 1 Low Security (%) 75 | 100 100 25 . 24 97 87 Level 1 24 | . . 73 . 75 2 12 Level 2 . | . . . . . . . Level 3 . | . . . . . . . Level 4 . | . . . . . . . Level 5 . | . . . . . . . High Security . | . . . . . . . Max Security . | . . . . . . . Squads Dispatched 4 | . 1 1 . . 2 . Investigation 1 | . 1 . . . . . Extermination . | . . . . . . . Reinforcement 1 | . . . . . 1 . Assault 1 | . . 1 . . . . Garrison 1 | . . . . . 1 . Intercept . | . . . . . . . Searches Triggered . | . . . . . . . Construction Impeded . | . . . . . . . Haulers Reinforced . | . . . . . . . Active Scanning Responses . | . . . . . . . Cargo Convoy Interrupts . | . . . . . . . Stealth | -11 -10 -10 -10 -9 -8 -7 --------- Run | Scr Mat Min Exi Min Mat Fac Distress Signals 6 | . 2 . . . 3 1 Communications Jammed . | . . . . . . . Distress Signals . | . . . . . . . Times Spotted 47 | . 2 11 . 6 21 7 Peak Tracking Total 11 | . 2 3 . 4 11 3 Tactical Retreats 4 | . . . . . 2 2 Traps | -11 -10 -10 -10 -9 -8 -7 ------- Run | Scr Mat Min Exi Min Mat Fac Traps Triggered 2 | . 1 . . . . 1 Indirectly . | . . . . . . . Trap Hack Attempts . | . . . . . . . Triggered . | . . . . . . . Disarmed . | . . . . . . . Reprogrammed . | . . . . . . . Reused . | . . . . . . . Traps Extracted . | . . . . . . . Installed . | . . . . . . . Triggered . | . . . . . . . Exploded 1 | . . . . 1 . . Machines | -11 -10 -10 -10 -9 -8 -7 ---------- Run | Scr Mat Min Exi Min Mat Fac Machines Disabled 3 | . . 3 . . . . Max in Single Turn 2 | . . 2 . . . . Machines Sabotaged . | . . . . . . . Garrisons Compromised . | . . . . . . . Overloaded Fab Kills . | . . . . . . . Hacking | -11 -10 -10 -10 -9 -8 -7 --------- Run | Scr Mat Min Exi Min Mat Fac Machines Accessed 14 | . 4 1 2 . 4 3 Terminals 10 | . 3 1 . . 4 2 Fabricators . | . . . . . . . Repair Stations 1 | . . . . . . 1 Recycling Units 1 | . 1 . . . . . Scanalyzers . | . . . . . . . Garrison Access . | . . . . . . . Total Hacks 40 | . 15 5 2 . 11 7 Successful 21 | . 8 1 2 . 6 4 Failed 18 | . 6 4 . . 5 3 Catastrophic . | . . . . . . . Database Lockouts 1 | . 1 . . . . . Manual 32 | . 13 5 1 . 9 4 Terminals 33 | . 13 5 . . 11 4 Fabricators . | . . . . . . . Repair Stations 3 | . . . . . . 3 Recycling Units 2 | . 2 . . . . . Scanalyzers . | . . . . . . . Garrison Access . | . . . . . . . Terminal Hacks 6 | . 2 1 2 . 1 . Record 1 | . . . 1 . . . Robot Analysis 4 | . 2 1 . . 1 . EX-Prototype ID Bank 1 | . . . 1 . . . Fabricator Hacks . | . . . . . . . Repair Station Hacks 2 | . . . . . . 2 Scan Component 1 | . . . . . . 1 Repair 1 | . . . . . . 1 Recycling Unit Hacks 1 | . 1 . . . . . Retrieve Components 1 | . 1 . . . . . Scanalyzer . | . . . . . . . Garrison Access Hacks . | . . . . . . . Unauthorized Hacks 12 | . 5 . . . 5 2 Terminals 12 | . 5 . . . 5 2 Track 2 | . 1 . . . 1 . Botnet 8 | . 3 . . . 3 2 Operators 2 | . 1 . . . 1 . Fabricators . | . . . . . . . Repair Stations . | . . . . . . . Recycling Units . | . . . . . . . Scanalyzers . | . . . . . . . Garrison Access . | . . . . . . . Data Cores Recovered . | . . . . . . . Used . | . . . . . . . Hacking Detections 12 | . 4 1 . . 4 3 Full Trace Events 2 | . 1 1 . . . . Feedback Events . | . . . . . . . Feedback Blocked . | . . . . . . . Robot Schematics Acquired . | . . . . . . . Robots Built . | . . . . . . . Authchips . | . . . . . . . Time . | . . . . . . . Total Robot Build Rating . | . . . . . . . Part Schematics Acquired . | . . . . . . . Parts Built . | . . . . . . . Authchips . | . . . . . . . Time . | . . . . . . . Total Part Build Rating . | . . . . . . . Parts Repaired 1 | . . . . . . 1 Time 26 | . . . . . . 26 Parts Recycled . | . . . . . . . Recycled Matter . | . . . . . . . Retrieved Matter . | . . . . . . . Retrieved Components . | . . . . . . . Parts Scanalyzed . | . . . . . . . Part Schematics Acquired . | . . . . . . . Parts Damaged . | . . . . . . . Bothacking | -11 -10 -10 -10 -9 -8 -7 ------------ Run | Scr Mat Min Exi Min Mat Fac Used RIF Installer . | . . . . . . . Robots Hacked . | . . . . . . . Non-combat . | . . . . . . . Combat . | . . . . . . . Robot Hacks Applied . | . . . . . . . Relay Couplers Released . | . . . . . . . Fabnet Peak Effective % . | . . . . . . . Robots Rewired . | . . . . . . . Allies Hacked . | . . . . . . . Hacks Repelled . | . . . . . . . Allies | -11 -10 -10 -10 -9 -8 -7 -------- Run | Scr Mat Min Exi Min Mat Fac Total Allies . | . . . . . . . Largest Group . | . . . . . . . Highest-Rated Group . | . . . . . . . Highest-Rated Ally . | . . . . . . . Total Orders . | . . . . . . . Ally Attacks 7 | . . . . 7 . . Total Damage 352 | . . . . 352 . . Kills 4 | . . . . 4 . . Allies Corrupted . | . . . . . . . Allies Melted . | . . . . . . . Turrets Deployed 1 | . . . . 1 . . Intel | -11 -10 -10 -10 -9 -8 -7 ------- Run | Scr Mat Min Exi Min Mat Fac Robot Analysis Total 4 | . 2 1 . . 1 . Derelict Logs Recovered 1 | . . 1 . . . . Drone Launches . | . . . . . . . Drone Recoveries . | . . . . . . . Exploration | -11 -10 -10 -10 -9 -8 -7 ------------- Run | Scr Mat Min Exi Min Mat Fac Turns Passed 2995 | 20 83 435 285 368 1577 227 Spaces Moved 2703 | 24 106 527 344 228 1256 218 Core 2703 | 24 106 527 344 228 1256 218 Treads . | . . . . . . . Legs . | . . . . . . . Wheels . | . . . . . . . Hover . | . . . . . . . Flight . | . . . . . . . Fastest Speed 50 | 50 50 50 50 50 50 50 Average Speed 70 | 50 50 50 80 83 74 73 Slowest Speed 150 | 50 50 100 100 100 150 100 Overloaded Moves . | . . . . . . . Propulsion Burnouts . | . . . . . . . Robots Hopped . | . . . . . . . Cave-ins Triggered 3 | . . . . . 3 . Exploration Rate (%) 37 | 3 30 66 68 25 57 11 Regions Visited 6 Branch Regions 3 Pre-discovered Areas 1 | . . . 1 . . . Known Exits Taken . | . . . . . . . Unknown Exits Taken 6 | 1 1 1 1 1 1 . Scrap Searched 2 | . . 2 . . . . Spaces Dug 18 | . . . . . 18 . Terrain Destroyed 83 | . . 44 . 18 21 . Melee 6 | . . . . . 6 . Projectile 15 | . . . . . 15 . AOE 62 | . . 44 . 18 . . Terrain Rammed . | . . . . . . . Walls Destroyed . | . . . . . . . Machines Disabled . | . . . . . . . Actions | -11 -10 -10 -10 -9 -8 -7 --------- Run | Scr Mat Min Exi Min Mat Fac Total 3548 | 27 118 605 352 400 1773 273 Wait 562 | . . 3 . 160 362 37 Move 2697 | 23 105 526 343 227 1255 218 Hop . | . . . . . . . Pick Up 24 | . 1 3 4 1 13 2 Fast Attach 27 | 2 2 4 . . 12 7 Attach 10 | . . 1 1 . 7 1 Detach 13 | . . 2 1 1 7 2 Swap 18 | . . 6 1 2 9 . Drop 23 | . . 1 2 4 16 . Fire 135 | 2 10 59 . 5 59 . Melee 36 | . . . . . 31 5 Ram 3 | . . . . . 2 1 Kick . | . . . . . . . Crush . | . . . . . . . Escape Stasis . | . . . . . . . Rewire . | . . . . . . . Trap . | . . . . . . . Miscellaneous . | . . . . . . . Route ------- -11/Scrapyard -10/Materials -10/Mines (discovered 3 exits: [*Mat x2] / *Exi) -10/Exiles -9/Mines -8/Materials -7/Factory History --------- Turn | Location | Event 5 | -11/Scrapyard | Discovered new exit (range 15) 21 | -11/Scrapyard | Entered Materials 75 | -10/Materials | Discovered new exit (range 14) 76 | -10/Materials | Central database locked down 104 | -10/Materials | Entered Mines 131 | -10/Mines | Learned Materials trap positions 284 | -10/Mines | Discovered new exit (range 6) 314 | -10/Mines | Build established: Mutant 318 | -10/Mines | Core integrity fell below 50% 330 | -10/Mines | Core integrity fell below 20% 343 | -10/Mines | Discovered new exit (range 7) 518 | -10/Mines | Met a Derelict testing a Signal Generator 537 | -10/Mines | Deemed a non-threat by the Exiles lab entrance 537 | -10/Mines | Discovered new exit (range 5) 539 | -10/Mines | Entered Exiles 553 | -10/Exiles | Met 8R-AWN 562 | -10/Exiles | Met EX-HEX 583 | -10/Exiles | Met EX-BIN 590 | -10/Exiles | Aligned with FarCom system 590 | -10/Exiles | Given EX-Vault access code 602 | -10/Exiles | Opened EX-Vault 605 | -10/Exiles | Found Modified TNC 609 | -10/Exiles | Found Cloak of Protection 613 | -10/Exiles | Found Deploy-a-Sentry 633 | -10/Exiles | Warned to stay clear of 0b10 Research branches 662 | -10/Exiles | Met EX-DEC 666 | -10/Exiles | Learned location of Zion (-7) 811 | -10/Exiles | Discovered new exit (range 14) 824 | -10/Exiles | Stole three prototypes: Modified TNC, Cloak of Protection, Deploy-a-Sentry 824 | -10/Exiles | Entered Mines 826 | -9/Mines | DAS Turret deployed 839 | -9/Mines | Met a Derelict bent on vengeance 1185 | -9/Mines | Discovered new exit (range 8) 1192 | -9/Mines | Entered Materials 1192 | -8/Materials | Evolved 4 slots: Power x1, Utility x3 1193 | -8/Materials | Loaded intel: 9 trap records 1536 | -8/Materials | Build established: Scavenger-Scout 1891 | -8/Materials | Build established: Mutant 2124 | -8/Materials | Garrison activated, responded to threat 2424 | -8/Materials | Crushed by falling debris 2444 | -8/Materials | Crushed by falling debris 2444 | -8/Materials | System corruption reached 10% 2451 | -8/Materials | Crushed by falling debris 2451 | -8/Materials | Core integrity fell below 50% 2475 | -8/Materials | Lost 4 parts (1p3u) 2702 | -8/Materials | Discovered new exit (range 15) 2769 | -8/Materials | Entered Factory 2769 | -7/Factory | Evolved 2 slots: Utility x2 2771 | -7/Factory | FarCom data flow suspended 2838 | -7/Factory | Repaired Sml. Storage Unit 2996 | -7/Factory | Self-destructed Last Messages --------------- Testing... Terminal linked with 0 systems. Awaiting botnet instructions. 02907_ >> Machine Analyzer network decryption results: 02907_ DSF Access x1 02913_ Connecting with Terminal... >>Trojan(Botnet) Trojan loaded successfully. Testing... Terminal linked with 1 system. Awaiting botnet instructions. 02923_ >> Machine Analyzer network decryption results: 02923_ Repair Station x1 02930_ Acquired Greatsword. 02959_ Lgt. Nuclear Core destroyed. 02967_ Y-54 Guardian destroyed. 02970_ Acquired 72 matter. 02971_ Acquired Imp. Deuterium Engine. 02976_ Acquired Adv. ECM Suite. 02996_ R-06 Scavenger collects Lgt. Treads. Map ----- +----------------------------------------------------+ | ?????"?"?"?"?" # # """ ##?????????????? | | ?????"?"?"?"?" / + ""R" ##?????????????? | | ?????"?"?"?"?" # # "" " + ????"""??????? | | ?????"?"?"?" " # # ##????"""??????? | | ?????"?"?"?" " # # ##????"""??????? | | ?????"?"?"?"?" # # """"""" ##?????????????? | | ?????"?"?"?"?" # # ! """"""" ##?????????????? | | ?????????????? # # """"""" ##?????????????? | | ??????????????????? # """"""" ##?????????????? | | ???????????????????? # ##?????????????? | | ???????????????????? # m ##?????????????? | | ???????????????????? ####/######+###?????????????? | | ??????????????## ??? #### ###### ###?????????????? | | ??????????????## ??????## ##??## ##??????????????? | | ????????????? ?????## ##??## ##??????????????? | | ????????????? ????## ##??## ##########??????? | | ???????????? ??T?## ##??## ##########??????? | | ???????????? ???## ##??## ## ##????? | | ??????????? ???## ##?### ## """"" ##????? | | ????????? ####r###### ## """"" ##????? | | ????????? #### ##### # """ ##????? | | ????????? ! + ##????? | | ????????? = ### # """"" !##????? | | ????????? ####### """"" ##????? | | ????????? ####### """ ##????? | | ????????? @ ##???## ##????? | | ?????????? ##########+#####???###########?????? | | ??????????? ? # # ???###########?????? | | ???????????????????""? #""" ????????????????????? | | ???????????????????""" #""" ! ##???????????????? | | ????????????????????R" #""" ##???????????????? | | ???????????????????""" # ##???????????????? | | ?????????????????????? # [!!##???????????????? | | ?????????????????????? # [!!###??????????????? | | ?????????????????????? # ?[!! ##??????????????? | | ?????????????????????? # ????? ###??????????????? | | ???????????????????????????????####??????????????? | | ?????????????????????????????????????????????????? | | ?????????????????????????????????????????????????? | | ?????????????????????????????????????????????????? | | ?????????????????????????????????????????????????? | | ?????????????????????????????????????????????????? | | ?????????????????????????????????????????????????? | | ?????????????????????????????????????????????????? | | ?????????????????????????????????????????????????? | | ?????????????????????????????????????????????????? | | ?????????????????????????????????????????????????? | | ?????????????????????????????????????????????????? | | ?????????????????????????????????????????????????? | | ?????????????????????????????????????????????????? | +----------------------------------------------------+ Best States ------------- Heat Dissipation 34 Energy Generation 17 Energy Capacity 300 Matter Stores 300 Matter Capacity 300 Sight Range 20 Terrain Scan Range 16 Terrain Scan Density 85 Additional Mass Support 9 Armor Coverage 150 Evasion (%) 50 Targeting Accuracy 8 Melee Accuracy 6 Defensive Hacking 10 Item Schematics ----------------- None Robot Schematics ------------------ None Fabricated ------------ Nothing Alien Tech Used ----------------- None Achievements -------------- None Challenges ------------ None Game ------ Seed SpliceSmallCapacitor Manual? 0 Play Time 00:36:37 Cumulative 646.9 hours Start 2022.06.25 @ 10:05:02 End 2022.06.25 @ 10:39:55 Sessions 1 Manual Loads 0 Difficulty Rogue Special Mode None Game No. 528 Rogue 528 Adventurer 0 Explorer 0 Win Type - Total 8 Types 7/0/0/1/0/0/0/0/0 Lore% 75 Gallery% 86 Achievement% 69 Wizard Run 0 Options --------- ASCII 0 Keyboard 1 Movement Numpad Keybinds 0 Fullscreen 1 Font 12/Terminus Map View 83x54 Tactical HUD 1 Map Filters NONE Filters NONE Steam 1 RUN: 715a1f6a-6b8e-41f0-80d9-f21a0a126400